[Event "Reykjavik Open 2025"]
[Site "Reykjavik"]
[Date "2025.04.10"]
[Round "3.34"]
[White "Saine, Zachary"]
[Black "Grettisson, Arnar Breki"]
[Result "1/2-1/2"]
[Annotator "ChessBase"]
[ECO "C54"]
[WhiteElo "2019"]
[BlackElo "1794"]
[PlyCount "56"]
[EventDate "2025.04.09"]
[EventType "swiss"]
[EventCountry "ISL"]
[SourceTitle "playchess.com"]
[Source "ChessBase"]
[SourceQuality "1"]
[TimeControl "40/5400+30:1800+30"]

1. e4 {[%emt 0:02:24]} e5 {[%emt 0:00:28]} 2. Nf3 {[%emt 0:00:24]} Nc6 {[%emt 0:00:08]} 3. Bc4 {[%emt 0:00:05]} Bc5 {[%emt 0:00:19]} 4. c3 {[%emt 0:00:05]} Nf6 {[%emt 0:00:14]} 5. d3 {[%emt 0:00:06]} d6 {[%emt 0:00:25]} 6. O-O {[%emt 0:00:17]} O-O {[%emt 0:01:05]} 7. h3 {[%emt 0:00:15]} h6 {[%emt 0:02:48]} 8. Re1 {[%emt 0:00:07]} Re8 {[%emt 0:00:50]} 9. Nbd2 {[%emt 0:03:58]} Be6 {[%emt 0:07:10]} 10. Bb5 {[%emt 0:02:51]} a6 {[%emt 0:04:52]} 11. Bxc6 {[%emt 0:03:15]} bxc6 {[%emt 0:01:10]} 12. d4 {[%emt 0:00:21]} exd4 {[%emt 0:00:11]} 13. cxd4 {[%emt 0:00:05]} Bb6 {[%emt 0:04:34]} 14. b3 {[%emt 0:02:08]} d5 {[%emt 0:01:25]} 15. e5 {[%emt 0:05:36]} Nd7 {[%emt 0:00:47]} 16. b4 {[%emt 0:08:12]} a5 {[%emt 0:07:07]} 17. Qc2 {[%emt 0:03:13]} axb4 {[%emt 0:04:12]} 18. Qxc6 {[%emt 0:00:58]} Ra6 {[%emt 0:11:41]} 19. Nb3 {[%emt 0:15:18]} Qa8 {[%emt 0:03:54]} 20. Qc2 {[%emt 0:01:04]} Qa7 {[%emt 0:00:35]} 21. Be3 {[%emt 0:06:21]} Ra8 {[%emt 0:06:33]} 22. Re2 {[%emt 0:02:51]} Ra3 {[%emt 0:08:56]} 23. Bc1 {[%emt 0:08:40]} Ra6 {[%emt 0:02:21]} 24. Be3 {[%emt 0:12:36]} Ra3 {[%emt 0:06:11]} 25. Bc1 {[%emt 0:08:14]} Ra4 {[%emt 0:06:07]} 26. Be3 {[%emt 0:00:25]} Qa6 {[%emt 0:01:03]} 27. g4 {[%emt 0:06:54]} Qc4 {[%emt 0:04:29]} 28. Qd2 {[%emt 0:03:39]} Qa6 {[%emt 0:05:09]} 1/2-1/2

[Event "Reykjavik Open 2025"]
[Site "Reykjavik"]
[Date "2025.04.10"]
[Round "3.36"]
[White "Sokolovsky, Yahli"]
[Black "Sriansh Das"]
[Result "1-0"]
[Annotator "TA"]
[ECO "C95"]
[WhiteElo "2546"]
[BlackElo "2278"]
[PlyCount "143"]
[EventDate "2025.04.09"]
[EventType "swiss"]
[EventCountry "ISL"]
[SourceTitle "playchess.com"]
[Source "ChessBase"]
[SourceQuality "1"]
[TimeControl "40/5400+30:1800+30"]

{[%evp 30,143,27,16,38,38,50,47,65,47,78,49,55,43,78,50,43,38,107,109,125,118,170,161,172,117,122,100,91,98,81,68,120,120,156,127,120,70,141,87,285,222,259,276,238,192,283,287,390,318,338,328,331,321,626,631,697,734,783,750,735,0,0,0,0,0,0,0,0,0,0,-33,0,0,0,0,0,0,0,0,0,0,0,14,75,75,302,304,308,289,237,243,1016,823,982,800,1365,1357,1613,1197,1481,955,1973,1845,1689,1802,1711,1569,2336,2208,2027,1997,29971,29971,6601,6055]} 1. e4 {[%emt 0:00:25]} e5 {[%emt 0:01:38]} 2. Nf3 {[%emt 0:00:07]} Nc6 {[%emt 0:00:05]} 3. Bb5 {[%emt 0:00:05][%cal Bf1b5,Bb5a4,Ba4b3,Bb3c2,Bc2d3][%mdl 32]} a6 {[%emt 0:00:06]} 4. Ba4 {[%emt 0:00:03]} Nf6 {[%emt 0:00:05]} 5. O-O {[%emt 0:00:05]} Be7 {[%emt 0:00:03]} 6. Re1 {[%emt 0:00:06]} b5 {[%emt 0:00:05]} 7. Bb3 {[%emt 0:00:04]} d6 {[%emt 0:00:14]} 8. c3 {[%emt 0:00:03]} O-O {[%emt 0:00:06]} 9. h3 {[%emt 0:00:02]} Nb8 {[%emt 0:00:06]} 10. d4 {[%emt 0:00:14]} Nbd7 {[%emt 0:00:05]} 11. Nbd2 {[%emt 0:00:05]} Bb7 {[%emt 0:00:17]} 12. Bc2 {[%emt 0:00:05]} Re8 {[%emt 0:00:09]} 13. Nf1 {[%emt 0:00:03]} Bf8 {[%emt 0:00:08]} 14. Ng3 {[%emt 0:00:03]} g6 {[%emt 0:00:12]} 15. a4 {[%emt 0:00:52]} Bg7 {[%emt 0:02:51]} 16. Bd3 {[%emt 0:01:00]} c6 {[%emt 0:00:06] C95: Closed Ruy Lopez: Breyer Variation with 10 d4.} 17. Bg5 {[%emt 0:01:12]} h6 {[%emt 0:01:17]} 18. Be3 $1 {[%emt 0:02:40] 18.Be3 is better than 18.Bd2.} Qc7 {[%emt 0:02:18] White is slightly better.} 19. dxe5 {[%emt 0:21:18]} dxe5 {[%emt 0:01:56]} 20. b4 {[%emt 0:02:57]} Rad8 {[%emt 0:01:59]} 21. Qe2 {[%emt 0:00:20]} Bf8 {[%emt 0:15:21]} 22. Reb1 $146 {[%emt 0:06:46]} (22. Rec1 Nb6 23. c4 bxc4 24. Bxc4 Nxc4 25. Rxc4 Qd6 26. Rac1 Qd3 27. Qb2 Nd7 28. Nd2 {½-½ Chabris,C (2078)-Hajnal,Z (2383) New York 1000 GM Winter IM-C 2024 (3)}) 22... Nb6 {[%emt 0:09:20]} 23. a5 {[%emt 0:00:13]} Nc8 {[%emt 0:01:26]} ({Black should try} 23... Na4 $14 24. Rxa4 Rxd3 (24... bxa4 25. Bb6 $16) 25. Qxd3 bxa4) 24. c4 $16 {[%emt 0:00:21][%cal Bc3c4,Bc4c5][%mdl 32]} Qd6 {[%emt 0:02:59]} 25. Ra3 {[%emt 0:09:57]} Qe6 {[%emt 0:03:04]} (25... Qc7 $16 26. c5 Na7) 26. c5 $18 {[%emt 0:01:12]} Na7 {[%emt 0:01:44]} 27. Bc1 {[%emt 0:06:42]} (27. Bc2 $18) 27... Bg7 $16 {[%emt 0:01:16]} 28. Bb2 {[%emt 0:02:44]} Nh7 {[%emt 0:00:38]} 29. Rd1 {[%emt 0:01:53]} Bc8 {[%emt 0:07:54]} 30. Bc2 {[%emt 0:03:43]} Rxd1+ {[%emt 0:02:29]} (30... Qc4 $1 $14) 31. Qxd1 {[%emt 0:00:08]} Nf8 {[%emt 0:07:14]} 32. Rd3 {[%emt 0:00:39]} Qe7 {[%emt 0:01:27]} 33. Qa1 {[%emt 0:07:14]} (33. Nf1 $16) 33... Bd7 {[%emt 0:01:10]} (33... f6 $14) 34. Nh2 {[%emt 0:05:02]} (34. h4 $142) 34... Nc8 $2 {[%emt 0:06:49] [#]} (34... f6 $16) 35. f4 $1 $18 {[%emt 0:03:59][%mdl 512]} Qh4 {[%emt 0:09:38]} 36. Ne2 {[%emt 0:13:36]} (36. Bxe5 Bxe5 37. fxe5 Qf4 $14) (36. fxe5 $6 Be6 $16) 36... Qe7 {[%emt 0:13:03]} 37. Rf3 {[%emt 0:00:19]} Ne6 {[%emt 0:05:42]} (37... Be6 $142 38. Ng3 (38. fxe5 Qc7 $16) (38. Bxe5 Bxe5 39. Qxe5 Bc4 $18) 38... Qd8) 38. Rf2 {[%emt 0:09:18]} (38. fxe5 Ng5 $16) (38. Bxe5 $6 Bxe5 39. fxe5 (39. Qxe5 Ng5 $16) 39... Ng5 $18) 38... Nf8 {[%emt 0:03:54]} 39. f5 {[%emt 0:00:58]} Nh7 {[%emt 0:00:33]} 40. Bb3 {[%emt 0:01:26]} gxf5 {[%emt 0:00:14]} 41. exf5 {[%emt 0:30:15]} Kf8 $2 {[%emt 0:30:46]} (41... h5 42. Nf3 Ng5) 42. Ng4 {[%emt 0:01:30]} f6 {[%emt 0:00:24]} 43. Ng3 {[%emt 0:00:43]} Rd8 {[%emt 0:00:35]} 44. Qc1 {[%emt 0:01:18]} Be8 {[%emt 0:00:19]} 45. Nxh6 $2 {[%emt 0:00:39]} ({White should try} 45. Nxe5 $18 {aiming for Ng6+.} Qc7 46. Ng6+ Bxg6 47. fxg6 Qxg3 48. gxh7 Qxb3 49. Qxh6 (49. Bxf6 $2 Rd1+ 50. Kh2 Rxc1 $19) 49... Bxh6 50. h8=Q+ (50. h8=B Qe3) 50... Ke7 51. Bxf6+ (51. Qxh6 Kd7 $18) 51... Ke6 52. Qxd8) 45... Rd3 $1 $11 {[%emt 0:00:21][%csl LRb3,LRg3]} 46. Rf3 $1 {[%emt 0:00:34]} Rxf3 {[%emt 0:00:19]} 47. gxf3 {[%emt 0:00:01]} Ng5 {[%emt 0:00:09][%cal Bh7g5,Bg5h3,Bh3f4,Bf4e2][%mdl 32]} 48. Ng4 {[%emt 0:00:02]} Nxh3+ {[%emt 0:00:22]} 49. Kh2 {[%emt 0:00:50]} Nf4 {[%emt 0:00:26]} 50. Qc2 {[%emt 0:01:03]} Bh8 {[%emt 0:01:10]} 51. Bc1 {[%emt 0:00:19]} Qh7+ $1 {[%emt 0:00:35]} 52. Kg1 {[%emt 0:00:01]} Qh3 {[%emt 0:00:20]} 53. Qh2 $36 {[%emt 0:01:13][%mdl 2048] White is more active. Some like it hot} Qxg3+ {[%emt 0:00:50]} 54. Qxg3 {[%emt 0:00:01]} Ne2+ {[%emt 0:00:01] Excellent horsemanship.} 55. Kg2 {[%emt 0:00:04]} Nxg3 {[%emt 0:00:07]} 56. Kxg3 {[%emt 0:00:06]} Bd7 {[%emt 0:00:46] [#]} (56... Ne7 $11 {keeps the balance.}) 57. Bh6+ $1 $16 {[%emt 0:01:08] White stays focused until the end.} Bg7 $2 {[%emt 0:01:34]} (57... Ke7 $16 {keeps fighting.}) 58. Nxf6 $18 {[%emt 0:00:35]} Bxf5 {[%emt 0:00:12]} 59. Bxg7+ {[%emt 0:00:12]} Kxg7 {[%emt 0:00:05]} 60. Ng4 {[%emt 0:01:23]} Bxg4 {[%emt 0:00:41]} (60... Ne7 61. Nxe5 Kf6) 61. fxg4 {[%emt 0:00:08][%mdl 4096] Endgame KB-KN} Kf6 {[%emt 0:00:36]} 62. Bc2 {[%emt 0:01:31]} Ne7 {[%emt 0:00:39]} 63. Be4 {[%emt 0:00:00]} Kg5 {[%emt 0:00:09]} 64. Bh1 {[%emt 0:00:05]} Kf6 {[%emt 0:00:17]} 65. Kh4 {[%emt 0:00:22]} e4 {[%emt 0:01:05]} 66. Bxe4 {[%emt 0:00:22]} Ke5 {[%emt 0:00:05]} 67. Bg2 {[%emt 0:00:33]} Kf4 {[%emt 0:00:00]} 68. Kh5 {[%emt 0:00:00]} Ke5 {[%emt 0:00:00]} 69. Kg5 {[%emt 0:00:00]} Ke6 {[%emt 0:00:00]} 70. Kf4 {[%emt 0:00:00]} Kf6 {[%emt 0:00:00]} 71. Be4 {[%emt 0:00:00]} Ke6 {[%emt 0:00:00]} 72. g5 {[%emt 0:00:00] Weighted Error Value: White=0.24 (precise) /Black=0.44  Loses game:     	---       	Black=2      Mistake:       	White=3     	Black=8      Inaccurate:     	White=3     	Black=4      OK:         	White=15    	Black=15     Best:        	White=2     	Black=3      Strong:       	White=1     	Black=1      Brilliant:      	White=1     	---} 1-0

[Event "Reykjavik Open 2025"]
[Site "Reykjavik"]
[Date "2025.04.10"]
[Round "3.37"]
[White "Kadric, Denis"]
[Black "Khaledi, Omid"]
[Result "1/2-1/2"]
[Annotator "TA"]
[ECO "B21"]
[WhiteElo "2533"]
[BlackElo "2228"]
[PlyCount "89"]
[EventDate "2025.04.09"]
[EventType "swiss"]
[EventCountry "ISL"]
[SourceTitle "playchess.com"]
[Source "ChessBase"]
[SourceQuality "1"]
[TimeControl "40/5400+30:1800+30"]

{[%evp 10,89,4,2,10,7,4,0,6,-12,-13,-20,-10,-10,0,-20,0,-17,-13,-23,-13,-39,-34,-41,-37,-54,-13,-39,-35,-58,0,0,0,7,0,0,17,8,30,20,12,6,43,33,33,7,43,33,39,0,0,0,0,0,0,0,0,0,31,36,64,52,12,-22,43,51,30,36,67,0,-10,-13,-17,-4,-20,-16,0,-10,0,-25,0,0]} 1. e4 {[%emt 0:00:03]} c5 {[%emt 0:00:05]} 2. Be2 {[%emt 0:00:21]} Nc6 {[%emt 0:00:49]} 3. f4 {[%emt 0:00:04]} d6 {[%emt 0:00:08]} 4. Nf3 {[%emt 0:00:10]} g6 {[%emt 0:00:26]} 5. O-O {[%emt 0:00:58]} Bg7 {[%emt 0:00:10]} 6. d3 {[%emt 0:01:03]} e6 {[%emt 0:02:15] B21: Sicilian: 2 f4 and Morra Gambit.} 7. c3 {[%emt 0:00:16]} Nge7 {[%emt 0:05:04]} 8. Na3 {[%emt 0:01:49]} a6 {[%emt 0:04:46]} 9. d4 $146 {[%emt 0:03:17]} (9. Nc2 Bd7 10. Qe1 Qc7 11. Rb1 f5 12. Kh1 h6 13. Bd2 Bf6 14. b4 cxb4 15. Nxb4 {1-0 Johlke,L (1650)-Stegmann,J (1705) Greifswald Springer op 2023 (7)}) 9... cxd4 {[%emt 0:00:11]} 10. cxd4 {[%emt 0:00:03]} b5 {[%emt 0:00:14]} 11. Nc2 {[%emt 0:00:40]} Bb7 {[%emt 0:00:29]} 12. Bd3 {[%emt 0:05:07][%cal Of4f5]} Qd7 {[%emt 0:03:23]} 13. Qe2 {[%emt 0:07:43]} O-O {[%emt 0:09:54]} 14. Bd2 {[%emt 0:00:05]} f5 {[%emt 0:03:18]} 15. e5 dxe5 {[%emt 0:00:57]} 16. fxe5 {[%emt 0:00:07]} Nd5 {[%emt 0:10:14]} 17. Rad1 {[%emt 0:02:18]} Nce7 {[%emt 0:01:14]} 18. Na1 {[%emt 0:01:25][%cal Bc2a1,Ba1b3,Bb3c5][%mdl 32]} Nb6 {[%emt 0:22:13][%cal Ob6c4]} 19. Nb3 {[%emt 0:00:19]} Bd5 {[%emt 0:01:01]} ({Black should try} 19... Na4 $15) 20. Nc5 $1 $11 {[%emt 0:01:42]} Bxf3 {[%emt 0:03:58]} 21. Qf2 {[%emt 0:05:16]} Qd5 {[%emt 0:04:23]} 22. gxf3 {[%emt 0:00:02]} Nc6 {[%emt 0:01:47]} 23. f4 {[%emt 0:05:07]} Rfe8 {[%emt 0:02:45]} (23... Qxa2 24. Be2 $14) (23... Nxd4 $2 24. Be3 $18) 24. b3 {[%emt 0:03:29]} Bf8 {[%emt 0:02:18]} (24... Qxd4 $6 25. Be3 Qb4 26. Nxe6 Rxe6 27. Bxb6 $16) 25. Be3 {[%emt 0:00:02]} Nb4 {[%emt 0:00:33]} 26. Be2 {[%emt 0:01:06]} Qd8 {[%emt 0:00:43]} 27. Bf3 {[%emt 0:01:18]} N4d5 {[%emt 0:00:47][%cal Od5e3]} 28. Bd2 {[%emt 0:03:38]} Ra7 {[%emt 0:00:37]} 29. Ba5 {[%emt 0:02:46]} Nxf4 {[%emt 0:14:10]} 30. Qg3 {[%emt 0:00:29] Repels Nh3+} g5 {[%emt 0:00:16]} 31. Kh1 {[%emt 0:08:45]} (31. Bxb6 Qxb6 32. b4 Rg7 $17) (31. Nb7 $2 Rxb7 32. Kh1 Rg7 $19) 31... Rg7 {[%emt 0:00:08]} 32. Nb7 {[%emt 0:10:04]} Qb8 {[%emt 0:00:19]} 33. Bxb6 {[%emt 0:00:02] [#]} Rxb7 {[%emt 0:00:14]} (33... h6 $5) 34. Qxg5+ {[%emt 0:00:18]} (34. Bxb7 Qxb7+ 35. Rf3 (35. d5 $2 Nxd5 36. Qxg5+ Bg7 $19) 35... Ng6 $17 (35... Qxb6 36. Rxf4 h6 37. d5 $16)) 34... Ng6 {[%emt 0:02:04]} (34... Rg7 $6 35. Qxf4 Qxb6 36. d5 $16) 35. Ba5 {[%emt 0:04:23] This pair of bishops is nice.} (35. Bxb7 $2 Qxb7+ 36. d5 Qxb6 $17) 35... Rg7 {[%emt 0:00:03]} 36. Qh5 {[%emt 0:00:06]} Nf4 {[%emt 0:01:48]} (36... b4 $1 $11 37. Be2 Kh8) 37. Qh4 $14 {[%emt 0:01:19]} Ng6 {[%emt 0:00:03]} 38. Qf2 {[%emt 0:00:33]} b4 {[%emt 0:00:21]} 39. Be2 {[%emt 0:01:17] Against Qb5} ({Better is} 39. Rc1 $14) 39... Kh8 $11 {[%emt 0:01:17]} 40. Rg1 {[%emt 0:01:52]} (40. Bxa6 $2 {is the wrong capture.} Qa8+ 41. d5 Qxa6 $19) 40... Rc8 {[%emt 0:02:17]} 41. Bc4 {[%emt 0:38:19]} Qb7+ {[%emt 0:31:52]} 42. Qg2 {[%emt 0:00:03][%cal Og2b7] [#] Active counter play!} Qe7 {[%emt 0:00:00][%cal Og6e5]} 43. Qf2 {[%emt 0:00:00]} Qb7+ {[%emt 0:00:00]} 44. Qg2 {[%emt 0:00:00][%cal Og2b7] Threatens to win with Qxb7!.} Qe7 {[%emt 0:00:00][%cal Og6e5]} 45. Qf2 {[%emt 0:04:14] Weighted Error Value: White=0.08 (flawless) /Black=0.10 (very precise)   Mistake:       	White=1     	Black=2      Inaccurate:     	White=5     	Black=4      OK:         	White=14    	Black=16     Best:        	White=6     	Black=3      Strong:       	White=1     	---} 1/2-1/2

[Event "Reykjavik Open 2025"]
[Site "Reykjavik"]
[Date "2025.04.10"]
[Round "3.38"]
[White "Dushyant Sharma"]
[Black "Cornette, Matthieu"]
[Result "1-0"]
[Annotator "TA"]
[ECO "B33"]
[WhiteElo "2313"]
[BlackElo "2528"]
[PlyCount "41"]
[EventDate "2025.04.09"]
[EventType "swiss"]
[EventCountry "ISL"]
[SourceTitle "playchess.com"]
[Source "ChessBase"]
[SourceQuality "1"]
[TimeControl "40/5400+30:1800+30"]

{[%evp 18,41,13,26,13,-9,39,31,40,44,35,27,156,160,163,152,153,158,162,168,137,110,117,112,377,375]} 1. e4 {[%emt 0:00:20]} c5 {[%emt 0:00:17]} 2. Nf3 {[%emt 0:00:06][%cal Bg1f3,Bf3d4,Bd4b5,Bb5a3,Ba3c4,Bc4b6][%mdl 32]} Nc6 {[%emt 0:00:03]} 3. d4 {[%emt 0:00:07]} cxd4 {[%emt 0:00:05]} 4. Nxd4 {[%emt 0:00:04]} e5 {[%emt 0:00:30]} 5. Nb5 {[%emt 0:01:07]} d6 {[%emt 0:00:08]} 6. N1c3 {[%emt 0:01:36]} a6 {[%emt 0:00:24]} 7. Na3 {[%emt 0:00:07]} Be6 {[%emt 0:01:22]} 8. Be3 {[%emt 0:07:41]} Nf6 {[%emt 0:02:06] 8...Rb8 gains popularity.} 9. Nc4 {[%emt 0:03:02]} b5 {[%emt 0:02:05]} 10. Nb6 {[%emt 0:04:26]} Rb8 {[%emt 0:01:24] B33: Sicilian: Pelikan and Sveshnikov Variations.} 11. a4 {[%emt 0:08:02][%cal Ba2a4,Ba4b5,Bb5c6][%mdl 32]} Ng4 {[%emt 0:33:52]} (11... Rxb6 $11 12. axb5 Rxb5 13. Rxa6 (13. Nxb5 axb5 14. Bxb5 Bd7 $11) 13... Rxb2 14. Rxc6 (14. Bb5 Rxb5 15. Nxb5 Qd7 $15) 14... Be7) 12. axb5 $146 {[%emt 0:12:48]} (12. Nbd5 b4 13. Ne2 Nxe3 14. Nxe3 g6 15. Ng3 Qc8 16. Bc4 Bxc4 17. Nxc4 Nd4 18. b3 {½-½ Zelesco,K (2048)-Sukandar,I (2349) Doeberl Cup Premier 50th 2012 (8)}) 12... Nxe3 {[%emt 0:01:28] Black sacrificed a pawn. White is slightly better.} 13. fxe3 {[%emt 0:00:05] A sharp opening} Qxb6 {[%emt 0:04:16]} (13... Rxb6 14. bxc6 Qc8 15. Nd5 Rxc6 16. c3 Bxd5 17. exd5 $16) 14. bxc6 {[%emt 0:00:06]} Qxe3+ {[%emt 0:09:09]} (14... Be7 $11 {remains equal.}) 15. Qe2 $16 {[%emt 0:04:21]} Qc5 {[%emt 0:03:29]} 16. Qxa6 {[%emt 0:02:34] White plays on the queen side and is better} Be7 {[%emt 0:03:07][%cal Oe8g8]} 17. Qa7 {[%emt 0:05:46]} O-O {[%emt 0:06:50][%cal Ob8b6] [#] ...Rb6! is the strong threat.} 18. Qxc5 {[%emt 0:05:30]} ({Worse is} 18. Qxe7 Rxb2 19. Ne2 Qb4+ (19... Rxc2 $2 20. Rd1 $19) (19... Qxc6 20. Rd1 $17) 20. Kf2 Rxc2 $17) 18... dxc5 {[%emt 0:00:02]} 19. Nd5 {[%emt 0:09:18]} Bxd5 {[%emt 0:05:00]} 20. exd5 {[%emt 0:00:20][%cal Be4d5,Bd5d6][%mdl 32] c7 would now be deadly.} Rxb2 $2 {[%emt 0:00:03][%mdl 8192] [#]} (20... Bd6 $16) 21. d6 $1 {[%emt 0:02:03][%mdl 512] Weighted Error Value: White=0.03 (flawless) /Black=0.56  Loses game:     	---       	Black=1      Mistake:       	---       	Black=2      OK:         	White=6     	Black=5      Best:        	White=2     	Black=1} 1-0